bitfinex/quotes_SOLUSD_20260208
["timestamp","ask_amount","ask_price","bid_price","bid_amount"]
[1770509701886,11.41695875,87.589,87.552,4.49999999]
[1770509702080,11.41695875,87.589,87.551,11.42180246]
[1770509702081,11.0,87.614,87.571,4.49999999]
[1770509702276,4.55917774,87.61,87.579,4.49999999]
[1770509703407,11.4143524,87.609,87.579,4.49999999]
[1770509704509,11.4143524,87.609,87.572,11.41906994]
[1770509704710,11.39246848,87.6,87.572,11.41906994]
[1770509705090,11.41504841,87.604,87.572,15.91906993]
[1770509706119,11.39246848,87.6,87.572,15.91906993]
[1770509706291,11.39246848,87.6,87.572,4.49999999]
[1770509706495,11.39246848,87.6,87.565,11.42004435]
[1770509706496,4.36028915,87.599,87.565,6.3e-06]
[1770509706898,4.36028915,87.579,87.565,6.3e-06]
[1770509708102,4.36028915,87.579,87.543,11.42290818]
[1770509708427,4.36028915,87.59,87.561,4.12357451]
[1770509708891,4.36028915,87.59,87.57,11.39246848]
[1770509709088,4.36028915,87.59,87.56,6.53e-06]
[1770509709805,11.41695875,87.589,87.56,6.53e-06]
[1770509710012,4.36028915,87.588,87.543,11.42290818]
[1770509710212,4.36028915,87.586,87.543,11.42290818]
[1770509710389,4.36028915,87.579,87.543,11.42290818]
[1770509710589,4.36028915,87.579,87.54,11.39246848]
[1770509710912,4.36028915,87.569,87.531,11.42446783]
[1770509711098,4.36028915,87.569,87.532,4.12357451]
[1770509711528,4.36028915,87.567,87.532,4.12357451]
[1770509711709,4.36028915,87.566,87.532,4.12357451]
[1770509712013,4.36028915,87.566,87.506,4.27908064]
[1770509712014,11.39246848,87.54,87.506,4.27908064]
[1770509712191,4.40721184,87.537,87.506,4.27908064]
[1770509712398,11.42361031,87.538,87.493,4.27908064]
[1770509712399,4.40721184,87.529,87.493,4.27908064]
[1770509713718,4.40721184,87.519,87.493,4.27908064]
[1770509714301,15.83338713,87.519,87.493,4.27908064]
[1770509714720,4.40721184,87.518,87.493,4.27908064]
[1770509715013,11.42617529,87.519,87.49,0.1]
[1770509715014,4.40721184,87.509,87.49,0.1]
[1770509715216,4.40721184,87.499,87.49,0.1]
[1770509715814,4.40721184,87.498,87.49,0.1]
[1770509716020,4.40721184,87.498,87.47,33.05908064]
[1770509716021,4.40721184,87.498,87.461,4.27908064]
[1770509716211,4.40721184,87.489,87.461,4.27908064]
[1770509716514,4.40721184,87.488,87.461,4.27908064]
[1770509717218,4.40721184,87.488,87.453,4.27908064]
[1770509718422,11.39246848,87.48,87.453,4.27908064]
[1770509718626,4.40721184,87.479,87.453,4.27908064]
[1770509719309,4.40721184,87.487,87.455,4.27908064]
[1770509720728,7.24193788,87.489,87.44,0.1]
[1770509720729,5.68550612,87.489,87.472,4.27908064]
[1770509720907,5.68550612,87.489,87.481,4.27908064]
[1770509722604,4.40721184,87.508,87.482,11.43092293]
[1770509722803,4.40721184,87.508,87.461,3.79091937]
[1770509723020,4.40721184,87.499,87.462,11.43345708]
[1770509723306,4.40721184,87.499,87.463,3.79091937]
[1770509724130,4.40721184,87.489,87.453,11.4345939]
[1770509724827,4.40721184,87.487,87.453,11.4345939]
[1770509725029,4.40721184,87.485,87.454,3.79091937]
[1770509725229,11.65995902,87.485,87.454,3.79091937]
[1770509725413,4.40721184,87.484,87.454,3.79091937]
[1770509725807,7.25274718,87.485,87.453,11.4345939]
[1770509725808,7.25274718,87.485,87.471,3.79091937]
[1770509726315,3.46182781,87.485,87.471,3.79091937]
[1770509727033,3.46182781,87.485,87.472,11.43222974]
[1770509727238,4.5,87.509,87.472,11.43222974]
[1770509727530,4.5,87.509,87.472,40.01280409]
[1770509727932,4.5,87.509,87.472,11.43222974]
[1770509728121,4.5,87.499,87.465,11.433076]
[1770509728623,4.5,87.499,87.469,11.43252931]
[1770509729130,4.5,87.499,87.461,40.01783651]
[1770509729509,4.5,87.499,87.47,11.39246848]
[1770509730009,11.74158729,87.508,87.47,11.39246848]
[1770509730214,11.74158729,87.508,87.461,40.01783651]
[1770509730215,7.24158729,87.508,87.48,11.39246848]
[1770509730922,4.5,87.506,87.47,11.39246848]
[1770509731126,4.5,87.506,87.471,11.43236043]
[1770509732120,4.5,87.506,87.48,11.39246848]
[1770509732305,4.5,87.506,87.471,40.01326152]
[1770509733735,4.5,87.506,87.471,11.43236043]
[1770509735810,7.24158729,87.508,87.471,40.01326152]
[1770509736016,7.24158729,87.508,87.48,11.39246848]
[1770509737140,7.24158729,87.508,87.481,11.4310536]
[1770509738130,7.24158729,87.508,87.442,57.18053031]
[1770509738131,4.5,87.489,87.45,11.39246848]
[1770509738337,4.5,87.489,87.452,11.43479216]
[1770509739441,4.5,87.487,87.452,11.43479216]
[1770509740216,4.5,87.479,87.44,11.49246848]
[1770509740416,4.5,87.479,87.441,11.43622627]
[1770509741821,4.5,87.477,87.441,11.43622627]
[1770509742219,4.5,87.477,87.45,11.39246848]
[1770509743340,4.5,87.475,87.45,11.39246848]
[1770509745146,4.5,87.483,87.46,11.39246848]
[1770509745635,4.5,87.483,87.44,0.1]
[1770509745636,4.5,87.483,87.45,11.39246848]
[1770509745833,4.5,87.483,87.46,11.39246848]
[1770509747451,4.5,87.483,87.44,0.1]
[1770509747634,4.5,87.483,87.455,11.43441395]
[1770509751243,4.5,87.483,87.46,11.39246848]
[1770509751419,4.5,87.483,87.455,11.43441395]
[1770509753146,7.24335894,87.484,87.46,11.39246848]
[1770509753343,7.24335894,87.484,87.47,11.39246848]
[1770509753546,7.24335894,87.484,87.47,4.5675383]
[1770509754442,11.74335894,87.484,87.47,4.5675383]
[1770509754745,4.5,87.482,87.44,33.2583012]
[1770509754950,4.5,87.482,87.454,11.43454378]
[1770509756744,11.4310536,87.481,87.44,0.1]
[1770509756953,4.5,87.48,87.45,4.5675383]
[1770509758144,4.5,87.479,87.44,4.6675383]
[1770509758530,4.5,87.479,87.44,0.1]
[1770509758749,4.5,87.469,87.44,0.1]
[1770509758950,4.5,87.467,87.44,0.1]
[1770509760634,4.45687481,87.449,87.42,0.1]
[1770509760833,4.5675383,87.45,87.42,0.1]
[1770509760834,4.45687481,87.447,87.42,0.1]
[1770509761731,4.45687481,87.447,87.42,4.67431948]
[1770509762355,4.45687481,87.447,87.42,0.1]
[1770509763035,4.45687481,87.445,87.42,0.1]
[1770509765461,4.45687481,87.445,87.42,11.53467665]
[1770509765660,4.47169072,87.443,87.42,0.1]
[1770509765869,4.47169072,87.439,87.42,0.1]
[1770509766368,40.02561638,87.444,87.4,0.1]
[1770509766369,4.47169072,87.429,87.4,0.1]
[1770509766536,4.47169072,87.419,87.4,0.1]
[1770509767459,4.47169072,87.417,87.4,0.1]
[1770509769671,4.47169072,87.409,87.38,0.1]
[1770509769862,4.47169072,87.399,87.38,0.1]
[1770509771163,4.47169072,87.397,87.38,0.1]
[1770509771666,4.47169072,87.389,87.362,11.44660194]
[1770509771841,4.41776124,87.395,87.365,0.49999842]
[1770509772247,7.26074891,87.413,87.365,0.49999842]
[1770509772551,11.67851015,87.413,87.39,11.43467665]
[1770509772752,11.67851015,87.413,87.387,0.49999842]
[1770509772951,4.41776124,87.412,87.387,0.49999842]
[1770509773863,4.41776124,87.412,87.39,11.43467665]
[1770509774550,4.5,87.433,87.4,11.43467665]
[1770509774756,4.5,87.433,87.41,11.43467665]
[1770509775980,4.5,87.433,87.411,11.44020775]
[1770509777157,4.5,87.44,87.42,11.43467665]
[1770509777358,4.5,87.447,87.43,11.43467665]
[1770509777953,7.25820615,87.452,87.43,11.43467665]
[1770509778156,11.75820615,87.452,87.43,11.43467665]
[1770509778347,4.5,87.45,87.42,11.43467665]
[1770509779465,4.5,87.45,87.421,11.43889912]
[1770509779642,4.5,87.448,87.374,57.22484788]
[1770509779847,11.43523653,87.449,87.381,11.44413545]
[1770509779848,4.5,87.419,87.381,11.44413545]
[1770509782178,4.5,87.409,87.36,11.53467665]
[1770509782463,4.5,87.399,87.36,0.1]
[1770509782651,4.5,87.399,87.366,11.44601663]
[1770509783375,4.5,87.397,87.361,11.44675541]
[1770509783765,4.5,87.397,87.37,11.43467665]
[1770509784982,7.25265632,87.408,87.39,11.43467665]
[1770509785272,7.25265632,87.408,87.39,22.87760742]
[1770509785868,7.25265632,87.408,87.39,11.44293077]
[1770509786080,7.25265632,87.408,87.385,11.44353566]
[1770509787675,4.5,87.423,87.39,11.43467665]
[1770509787980,4.5,87.423,87.4,11.43467665]
[1770509788278,4.5,87.423,87.39,11.43467665]
[1770509789979,4.5,87.423,87.4,11.43467665]
[1770509790161,4.5,87.423,87.39,11.43467665]
[1770509790676,4.5,87.419,87.37,11.43467665]
[1770509791781,4.5,87.409,87.361,40.06364395]
[1770509792160,4.5,87.407,87.361,40.06364395]
[1770509793169,11.43467665,87.4,87.361,40.06364395]
[1770509793467,4.5,87.399,87.361,40.06364395]
[1770509793883,4.5,87.389,87.36,0.1]
[1770509794266,4.5,87.387,87.36,0.1]
[1770509795866,7.25328054,87.392,87.36,0.1]
[1770509795867,7.25328054,87.392,87.36,11.53467665]
[1770509796062,4.5,87.391,87.37,11.43467665]
[1770509796268,4.5,87.39,87.36,0.1]
[1770509796587,4.5,87.39,87.36,11.53467665]
[1770509796783,4.5,87.39,87.36,22.98148786]
[1770509798066,4.5,87.388,87.36,22.98148786]
[1770509798272,4.5,87.388,87.36,0.1]
[1770509800088,4.5,87.386,87.36,0.1]
[1770509800788,4.5,87.386,87.36,11.53467665]
[1770509800993,4.5,87.391,87.37,11.43467665]
[1770509801294,7.25328054,87.392,87.37,11.43467665]
[1770509801991,4.5,87.391,87.36,11.53467665]
[1770509802299,4.5,87.391,87.361,11.44675541]
[1770509802979,4.5,87.389,87.36,0.1]
[1770509804288,4.5,87.387,87.36,0.1]
[1770509805193,4.5,87.387,87.36,11.53467665]
[1770509806675,4.5,87.385,87.36,0.1]
[1770509807888,4.5,87.385,87.36,11.53467665]
[1770509808398,4.5,87.385,87.36,0.1]
[1770509809080,4.5,87.385,87.36,11.53467665]
[1770509809392,4.5,87.391,87.36,11.53467665]
[1770509810300,4.5,87.391,87.37,11.43467665]
[1770509812194,7.25328054,87.392,87.371,11.44544528]
[1770509813894,7.25328054,87.392,87.36,0.1]
[1770509813895,4.5,87.391,87.362,11.44655958]
[1770509814102,4.5,87.39,87.362,11.44655958]
[1770509815403,4.5,87.388,87.36,11.53467665]
[1770509815706,4.5,87.388,87.361,11.44675541]
[1770509816714,4.5,87.388,87.36,11.53467665]
[1770509817205,4.5,87.386,87.36,0.1]
[1770509819491,4.5,87.384,87.36,0.1]
[1770509819889,11.43467665,87.38,87.36,0.1]
[1770509820089,4.5,87.379,87.346,0.2690349]
[1770509821599,4.45,87.377,87.346,0.2690349]
[1770509823714,4.45,87.375,87.346,0.2690349]
[1770509825821,4.45,87.373,87.346,0.2690349]
[1770509826225,4.45,87.373,87.347,11.4485901]
[1770509827913,7.24981945,87.384,87.361,0.1]
[1770509828106,7.24981945,87.384,87.37,4.58090253]
[1770509828421,7.24981945,87.384,87.361,0.1]
[1770509829106,4.45,87.383,87.355,0.1]
[1770509829512,4.45,87.379,87.347,11.4485901]
[1770509830513,4.58090253,87.38,87.346,0.2690349]
[1770509830514,4.45,87.377,87.346,0.2690349]
[1770509831806,4.5,87.375,87.341,11.44937658]
[1770509835422,4.5,87.375,87.35,4.58090253]
[1770509836031,4.5,87.375,87.351,11.44806584]
[1770509836207,4.5,87.383,87.351,11.44806584]
[1770509837819,4.5,87.379,87.346,11.44861962]
[1770509838018,4.5,87.377,87.341,11.44937658]
[1770509838324,4.5,87.377,87.35,4.58090253]
[1770509839703,4.5,87.377,87.341,40.07281803]
[1770509841609,4.5,87.375,87.341,11.44937658]
[1770509841811,4.5,87.369,87.331,11.45067765]
[1770509842014,4.5,87.369,87.33,0.1]
[1770509842222,4.5,87.369,87.341,11.44937658]
[1770509842415,4.5,87.369,87.34,4.58090253]
[1770509843227,4.5,87.367,87.331,11.45068761]
[1770509843707,4.5,87.349,87.33,0.1]
[1770509843911,4.5,87.367,87.33,4.68090253]
[1770509845012,4.5,87.365,87.34,4.58090253]
[1770509846126,4.5,87.365,87.34,16.03030064]
[1770509846334,4.5,87.365,87.33,4.68090253]
[1770509846533,4.5,87.365,87.341,11.44937658]
[1770509848436,4.5,87.363,87.336,11.44995838]
[1770509848935,4.5,87.363,87.34,11.44945445]
[1770509849528,4.5,87.363,87.34,16.03035698]
[1770509851555,4.5,87.363,87.335,11.45011683]
[1770509851847,4.5,87.363,87.33,16.13162969]
[1770509852737,4.5,87.361,87.33,0.1]
[1770509853236,4.5,87.359,87.33,0.1]
[1770509856121,4.5,87.359,87.33,4.68090253]
[1770509856434,4.5,87.359,87.34,4.58090253]
[1770509856640,4.5,87.359,87.33,4.68090253]
[1770509857739,4.5,87.359,87.331,11.45068761]
[1770509857942,4.5,87.359,87.34,4.58090253]
[1770509858943,4.5,87.359,87.341,11.44937658]
[1770509859740,4.5,87.359,87.335,11.45006666]
[1770509860043,4.5,87.359,87.331,28.62671903]
[1770509860044,4.5,87.359,87.33,4.68090253]
[1770509860743,4.5,87.359,87.333,11.45042138]
[1770509864226,4.5,87.359,87.34,4.58090253]
[1770509864428,7.25428005,87.367,87.34,4.58090253]
[1770509864634,4.5,87.366,87.34,4.58090253]
[1770509866037,4.5,87.366,87.341,11.44937658]
[1770509868448,4.5,87.366,87.35,4.58090253]
[1770509868831,4.5,87.366,87.341,11.44937658]
[1770509873955,4.5,87.366,87.33,0.1]
[1770509874155,4.58090253,87.36,87.33,0.1]
[1770509874345,4.5,87.359,87.33,0.1]
[1770509879950,4.5,87.359,87.33,4.68090253]
[1770509880344,4.5,87.357,87.33,0.1]
[1770509881342,4.5,87.357,87.33,4.68090253]
[1770509882259,4.5,87.355,87.33,0.1]
[1770509882642,4.5,87.355,87.331,11.45068761]
[1770509883651,7.25629938,87.373,87.35,4.58272526]
[1770509883857,7.25629938,87.373,87.36,4.58272526]
[1770509884363,11.44046951,87.409,87.361,11.44675541]
[1770509884659,11.44046951,87.409,87.37,4.58272526]
[1770509884964,11.44046951,87.409,87.38,4.58272526]
[1770509885362,11.43916082,87.419,87.38,4.58272526]
[1770509885561,4.38830371,87.418,87.38,1.46313815]
[1770509885770,4.38830371,87.418,87.38,6.04586341]
[1770509886369,4.38830371,87.416,87.38,6.04586341]
[1770509886569,4.38830371,87.416,87.381,11.44413545]
[1770509887776,4.38830371,87.416,87.38,1.46313815]
[1770509888278,4.38830371,87.409,87.38,1.46313815]
[1770509889173,4.38830371,87.409,87.37,4.58272526]
[1770509889356,40.03889492,87.415,87.36,4.58272526]
[1770509889357,4.38830371,87.399,87.36,4.58272526]
[1770509889855,4.38830371,87.399,87.36,6.04586341]
[1770509890052,4.38830371,87.399,87.361,1.46313815]
[1770509890581,4.38830371,87.397,87.361,1.46313815]
[1770509891572,4.38830371,87.395,87.361,1.46313815]
[1770509892081,4.20369369,87.379,87.34,4.58272526]
[1770509892263,4.20369369,87.379,87.341,1.46313815]
[1770509893477,4.20369369,87.379,87.343,1.46313815]
[1770509894375,4.20369369,87.377,87.343,1.46313815]
[1770509896582,4.20369369,87.377,87.345,1.46313815]
[1770509897485,7.24653725,87.411,87.344,11.44898333]
[1770509897486,4.20369369,87.389,87.361,1.46313815]
[1770509899982,4.20369369,87.389,87.362,11.44662439]
[1770509900585,4.20369369,87.388,87.36,4.58272526]
[1770509901377,4.20369369,87.386,87.36,4.58272526]
[1770509901788,4.20369369,87.386,87.358,1.46313815]
[1770509904367,4.20369369,87.384,87.352,1.46313815]
[1770509904685,4.20369369,87.384,87.35,11.44811074]
[1770509905296,4.20369369,87.379,87.331,1.46313815]
[1770509905496,4.20369369,87.379,87.342,1.46313815]
[1770509905673,4.20369369,87.379,87.36,1.46313815]
[1770509905990,4.20369369,87.379,87.361,1.46313815]
[1770509906191,4.20369369,87.379,87.362,11.44662439]
[1770509906392,4.20369369,87.395,87.37,6.04586341]
[1770509906591,4.20369369,87.395,87.371,1.46313815]
[1770509907982,7.25546818,87.397,87.381,1.46313815]
[1770509908394,7.25546818,87.397,87.382,12.90714263]
[1770509910584,0.2,87.47,87.382,12.90714263]
[1770509910585,4.20369369,87.409,87.39,4.58272526]
[1770509912291,4.5,87.407,87.364,28.61579323]
[1770509912496,4.5,87.407,87.38,4.58272526]
[1770509912898,4.5,87.407,87.388,11.44319121]
[1770509913698,4.5,87.417,87.391,11.44282592]
[1770509916098,4.5,87.433,87.4,4.58272526]
[1770509917194,4.5,87.433,87.41,4.58272526]
[1770509917684,4.5,87.433,87.401,11.44151668]
[1770509918798,4.5,87.433,87.41,4.58272526]
[1770509919098,4.5,87.433,87.401,11.44151668]
[1770509920180,4.5,87.431,87.4,4.58272526]
[1770509921504,11.4377216,87.43,87.4,4.58272526]
[1770509921800,4.5,87.419,87.387,11.44328438]
[1770509922387,4.5,87.419,87.371,11.44533044]
[1770509923106,4.5,87.419,87.375,11.44490545]
[1770509923681,4.5,87.417,87.375,11.44490545]
[1770509923881,4.5,87.417,87.38,4.58272526]
[1770509926199,4.5,87.415,87.381,11.44413545]
[1770509927309,4.5,87.413,87.381,11.44413545]
[1770509929412,4.5,87.418,87.39,4.58272526]
[1770509929712,4.5,87.418,87.38,4.58272526]
[1770509929893,4.5,87.418,87.375,11.4449113]
[1770509931137,4.5,87.409,87.375,11.4449113]
[1770509931314,4.5,87.409,87.371,11.44544528]
[1770509932510,4.5,87.399,87.351,28.62007148]
[1770509932809,4.5,87.389,87.351,28.62007148]
[1770509933513,4.5,87.388,87.351,40.06813732]
[1770509934095,4.5,87.388,87.351,11.44806584]
[1770509935412,4.5,87.386,87.351,11.44806584]
[1770509935707,4.5,87.386,87.36,4.58272526]
[1770509937013,4.5,87.386,87.353,11.44777669]
[1770509937205,4.5,87.384,87.353,11.44777669]
[1770509938413,4.5,87.384,87.357,11.44726227]
[1770509938817,4.5,87.384,87.351,11.44806584]
[1770509940317,4.5,87.384,87.35,4.58272526]
[1770509940318,11.44387352,87.383,87.35,4.58272526]
[1770509940507,4.5,87.369,87.33,4.68272526]
[1770509940707,4.5,87.369,87.337,11.44986288]
[1770509941318,4.5,87.369,87.341,11.44935568]
[1770509942621,4.5,87.367,87.341,11.44935568]
[1770509943415,4.5,87.382,87.36,4.58272526]
[1770509943723,7.25311644,87.4,87.37,4.58272526]
[1770509943897,4.5,87.399,87.37,4.58272526]
[1770509945110,7.25311644,87.4,87.38,4.58272526]
[1770509945311,7.25311644,87.4,87.39,4.58272526]
[1770509945527,7.25311644,87.4,87.39,4.5754937]
[1770509945723,4.5,87.399,87.38,4.5754937]
[1770509946023,4.5,87.399,87.371,11.44544528]
[1770509947505,4.5,87.399,87.365,11.44610586]
[1770509947722,4.5,87.397,87.37,11.44556788]
[1770509947919,4.5,87.397,87.37,16.02106158]
[1770509948806,4.5,87.395,87.37,4.5754937]
[1770509949934,4.5,87.395,87.33,0.1]
[1770509949935,4.5,87.395,87.36,4.5754937]
[1770509951329,4.5,87.393,87.35,4.5754937]
[1770509952121,4.5,87.389,87.33,0.1]
[1770509952430,4.5,87.389,87.34,4.5754937]
[1770509952837,4.5,87.379,87.34,4.5754937]
[1770509953532,4.5,87.377,87.341,11.44937658]
[1770509954110,4.5,87.359,87.33,0.1]
[1770509954529,4.5,87.359,87.33,4.6754937]
[1770509954827,4.5,87.359,87.33,16.12626271]
[1770509955833,4.5,87.357,87.33,0.1]
[1770509956414,4.5,87.349,87.33,0.1]
[1770509957934,57.44088478,87.449,87.33,0.1]
[1770509957935,4.5,87.347,87.33,0.1]
[1770509958314,4.45,87.339,87.3,4.5754937]
[1770509958518,4.45,87.339,87.301,0.1]
[1770509958715,4.45,87.339,87.31,4.5754937]
[1770509959140,4.45,87.339,87.301,0.1]
[1770509959342,4.5754937,87.33,87.293,0.1]
[1770509959519,4.45,87.329,87.293,0.1]
[1770509959713,4.45,87.327,87.3,4.5754937]
[1770509959916,4.45,87.327,87.31,4.5754937]
[1770509960141,4.45,87.327,87.3,4.6754937]
[1770509960334,4.45,87.327,87.294,11.55547406]
[1770509960838,4.45,87.327,87.3,4.5754937]
[1770509962625,4.45,87.327,87.301,11.45462251]
[1770509963025,4.45,87.333,87.31,4.5754937]
[1770509963236,4.45,87.333,87.311,0.1]
[1770509963744,4.45,87.333,87.31,4.5754937]
[1770509965528,4.45,87.333,87.301,11.4545138]
[1770509965852,4.45,87.333,87.305,11.45404907]
[1770509966526,4.45,87.331,87.301,0.1]
[1770509967650,4.45,87.329,87.3,4.5754937]
[1770509967836,4.45,87.329,87.291,0.1]
[1770509967837,4.45,87.319,87.29,4.5754937]
[1770509968231,4.45,87.319,87.29,4.6754937]
[1770509968460,4.45,87.319,87.291,0.1]
[1770509969955,4.45,87.319,87.285,0.1]
[1770509970153,4.45,87.317,87.285,0.1]
[1770509971451,4.45,87.289,87.251,11.46107632]
[1770509971645,4.5754937,87.3,87.273,11.45820648]
[1770509971646,4.45,87.295,87.273,11.45820648]
[1770509971855,4.45,87.289,87.262,11.45962737]
[1770509972359,4.45,87.279,87.26,0.1]
[1770509972861,4.45,87.269,87.25,0.1]
[1770509973225,4.45,87.267,87.25,0.1]
[1770509973939,4.45,87.259,87.25,0.1]
[1770509976852,5.13032502,87.294,87.25,0.1]
[1770509976853,4.5754937,87.28,87.25,0.1]
[1770509977047,28.63896673,87.294,87.251,0.3]
[1770509977048,11.45679641,87.285,87.251,0.3]
[1770509977246,4.5754937,87.28,87.251,0.3]
[1770509977760,11.45679641,87.285,87.251,11.76117382]
[1770509978853,11.45698475,87.283,87.251,11.76117382]
[1770509979055,4.35,87.282,87.252,0.3]
[1770509979267,4.35,87.299,87.261,0.3]
[1770509979568,4.35,87.298,87.25,0.1]
[1770509979743,4.35,87.279,87.25,0.1]
[1770509980146,4.5754937,87.27,87.25,0.1]
[1770509980345,4.35,87.269,87.25,0.1]
[1770509981549,4.35,87.268,87.25,0.1]
[1770509982460,4.35,87.279,87.251,0.3]
[1770509982963,4.35,87.279,87.25,4.6754937]
[1770509982964,4.35,87.259,87.25,0.1]
[1770509983149,11.4576411,87.278,87.25,0.1]
[1770509983150,4.35,87.277,87.25,4.6754937]
[1770509983351,4.35,87.309,87.27,4.5754937]
[1770509983661,4.35,87.309,87.29,4.5754937]
[1770509983849,4.35,87.309,87.281,0.3]
[1770509985064,4.35,87.289,87.254,11.46070194]
[1770509985270,4.35,87.289,87.255,0.3]
[1770509985460,4.35,87.289,87.26,4.5754937]
[1770509986251,4.35,87.269,87.25,0.1]
[1770509986956,4.35,87.277,87.25,0.1]
[1770509987358,4.35,87.269,87.25,0.1]
[1770509988258,4.35,87.259,87.25,0.1]
[1770509989160,4.35,87.277,87.25,0.1]
[1770509990055,4.35,87.277,87.25,4.6754937]
[1770509990655,4.35,87.277,87.25,0.1]
[1770509991173,4.35,87.275,87.25,0.1]
[1770509992178,4.35,87.275,87.25,11.87789357]
[1770509992378,4.35,87.275,87.25,0.4]
[1770509992580,4.35,87.275,87.25,11.87789357]
[1770509993575,4.35,87.275,87.251,11.46118669]
[1770509993761,4.35,87.275,87.25,11.87789357]
[1770509994162,11.45816623,87.274,87.25,0.1]
[1770509994468,4.35,87.273,87.25,0.1]
[1770509995273,4.35,87.271,87.25,0.1]
[1770509995674,4.35,87.278,87.251,0.3]
[1770509995878,11.45707375,87.283,87.251,0.3]
[1770509996072,4.35,87.282,87.251,0.3]
[1770509996977,4.35,87.269,87.25,0.1]
[1770509997277,4.35,87.276,87.251,0.3]
[1770509999774,4.35,87.269,87.25,0.1]
[1770510001762,4.35,87.298,87.253,0.3]
[1770510002286,57.25616648,87.327,87.252,11.46105533]
[1770510002287,4.35,87.314,87.281,0.3]
[1770510002890,4.35,87.329,87.3,11.47789357]
[1770510003084,4.35,87.329,87.297,0.3]
[1770510003297,4.35,87.329,87.301,0.3]
[1770510003971,4.35,87.329,87.3,11.47789357]
[1770510004168,4.35,87.329,87.3,11.77789357]
[1770510004378,4.35,87.349,87.32,11.47789357]
[1770510004571,4.35,87.348,87.31,11.47789357]
[1770510005185,4.35,87.339,87.301,0.3]
[1770510005687,4.35,87.339,87.303,0.3]
[1770510005882,5.13032502,87.373,87.32,11.46223098]
[1770510005883,4.35101909,87.359,87.32,11.46223098]
[1770510006479,11.46223098,87.35,87.313,0.3]
[1770510006682,4.35101909,87.349,87.306,0.3]
[1770510008166,11.44845903,87.348,87.31,11.46223098]
[1770510008367,4.35101909,87.347,87.32,11.46223098]
[1770510010196,4.35101909,87.345,87.315,11.45275005]
[1770510010589,4.35101909,87.345,87.315,11.75275005]
[1770510010785,4.35101909,87.345,87.316,0.3]
[1770510011788,4.35101909,87.345,87.318,0.3]
[1770510011995,15.79813415,87.351,87.321,0.3]
[1770510012182,4.35,87.35,87.321,0.3]
[1770510012693,4.35,87.35,87.313,0.3]
[1770510012898,4.35,87.349,87.313,0.3]
[1770510013601,4.35,87.349,87.32,11.46223098]
[1770510014298,4.35,87.347,87.32,11.46223098]
[1770510014494,5.13032502,87.373,87.32,11.46223098]
[1770510014495,4.35,87.354,87.322,0.3]
[1770510015590,4.35,87.353,87.324,0.3]
[1770510016215,4.35,87.353,87.32,11.46223098]
[1770510016817,4.35,87.353,87.32,11.76223098]
[1770510017397,4.35,87.349,87.32,0.3]
[1770510017596,4.35,87.349,87.3,28.63664618]
[1770510017597,4.35,87.339,87.301,0.3]
[1770510017807,4.35,87.339,87.304,11.45413306]
[1770510018318,4.35,87.339,87.311,0.3]
[1770510018514,4.35,87.339,87.313,11.45301553]
[1770510019015,4.35,87.339,87.314,0.3]
[1770510019216,4.35,87.369,87.321,0.3]
[1770510019428,0.2,87.37,87.275,5.13032502]
[1770510019429,4.35,87.364,87.34,11.46223098]
[1770510019720,4.35,87.364,87.333,11.45032513]
[1770510020021,11.66223098,87.37,87.311,0.3]
[1770510020022,4.35,87.359,87.311,0.3]
[1770510020404,4.35,87.339,87.29,11.46223098]
[1770510020612,4.35,87.329,87.291,0.3]
[1770510021210,4.35,87.319,87.285,11.45672223]
[1770510021412,4.35,87.317,87.285,11.45672223]
[1770510022407,4.35,87.317,87.285,11.75672223]